Workbook

Sheet от 3 до 7 лет
G1: "Утверждаю"
G2: Руководитель дошкольной образовательной
G3: организации
A4: Примерное 10-дневное меню
A5: для организации питания детей в дошкольных учреждениях
A6: с 7-12 - часовым пребыванием от 3 до 7 лет
A8: День 1 - ый
A9: Наименование блюд и | B9: Масса | C9: Кол - во | D9: Кол - во | E9: Пищевые вещества | H9: Энергетическая | I9: Витамин | J9: Сборник рецептур | K9: Распред калор между приемами пищи,%
A10: продуктов | B10: порции | C10: (в гр ) | D10: (в гр ) | H10: ценность
C11: брутто | D11: нетто | E11: белки | F11: жиры | G11: угл-ды | H11: Ккал | I11: С
A12: ЗАВТРАК
A13: Каша "Дружба" молочная с маслом сливочным | B13: 200/5 | E13: 5.20 | F13: 7.10 | G13: 23.20 | H13: 177.50 | I13: 0.21 | J13: ТТК №7Д
A14: Крупа рисовая | C14: 15.00 | D14: 15.00
A15: Крупа пшенная | C15: 11.00 | D15: 11.00
A16: Молоко | C16: 100.00 | D16: 100.00
A17: Вода | C17: 76.00 | D17: 76.00
A18: Сахар | C18: 5.00 | D18: 5.00
A19: соль иодированная | C19: 1.00 | D19: 1.00
A20: Масло сливочное | C20: 5.00 | D20: 5.00
A21: Кофейный напиток с молоком | B21: 180 | E21: 2.85 | F21: 2.41 | G21: 14.36 | H21: 91.00 | I21: 0.19 | J21: №395 Дели2010
A22: Кофейный напиток | C22: 2.50 | D22: 2.50
A23: Сахар | C23: 10.00 | D23: 10.00
A24: Молоко | C24: 90.00 | D24: 90.00
A25: Вода | C25: 108.00 | D25: 108.00
A26: Бутерброд с маслом сливочным | B26: 30/5 | E26: 2.30 | F26: 4.50 | G26: 15.40 | H26: 111.00 | J26: №1 Дели2010
A27: Батон нарезной | C27: 30.00 | D27: 30.00
A28: Масло сливочное | C28: 5.00 | D28: 5.00
A29: Итого: | B29: 420 | E29: =E13+E21+E26 -> 10.35 | F29: =F13+F21+F26 -> 14.01 | G29: 52.96 | H29: 379.50 | I29: 0.40 | K29: =(H29*K118/H118)*100 -> 22.93
A30: 2 - ой ЗАВТРАК
A31: Сок (или нектар) | B31: 100 | C31: 100 | D31: 100 | E31: 0.50 | F31: 0.00 | G31: 10.10 | H31: 42.67 | I31: 2.00 | J31: №418 сб дошк 2016
A32: в ассортименте
A33: Фрукты свежие | B33: 80 | C33: 91.2 | D33: 80 | E33: 0.32 | F33: 0.32 | G33: 7.84 | H33: 35.20 | I33: 8.00 | J33: №386 СБ
A34: (яблоки,или апельсин, или банан,или мандарин ) | J34: дошк.2016
A35: Итого: | B35: 180 | E35: =E31+E33 -> 0.82 | F35: =F31+F33 -> 0.32 | G35: 17.94 | H35: 77.87 | I35: 10.00 | K35: =(H35*K118/H118)*100 -> 4.71
A36: ОБЕД
A37: Салат из зеленого горошка консервированного | B37: 40 | E37: 1.19 | F37: 2.08 | G37: 2.50 | H37: 33.44 | I37: 4.40 | J37: №10 сб дошк 2016
A38: зеленый горошек к/с | C38: 63.46 | D38: 38.00
A39: масло растительное | C39: 2.00 | D39: 2.00
A40: Суп со звездочами с картофелем с мясными фрикадельками | B40: 200/15 | E40: 5.01 | F40: 22.51 | G40: 13.83 | H40: 109.39 | I40: 5.28 | J40: №140,сбшк2004
A41: говядина б/к (котлетное мясо) | C41: 17.85 | D41: 17.1
A42: или фарш говяжий | D42: 17.1
A43: Лук репчатый | C43: 1.79 | D43: 1.5
A44: Яйцо | C44: 1.44 | D44: 1.2
A45: Вода для фарша | C45: 1.5 | D45: 1.5
A46: соль иодированная | C46: 1.2 | D46: 1.2
A47: Масса полуфабриката | D47: 21.5
A48: масса готовых фрикаделек | D48: 15
A49: Картофель | C49: 79.80 | D49: 60.00
A50: Морковь | C50: 10.00 | D50: 8.00
A51: Лук репчатый | C51: 9.52 | D51: 8.00
A52: суповая засыпка (звездочки) | C52: 8.00 | D52: 8.00
A53: Масло растительное | C53: 4.00 | D53: 4.00
A54: соль иодированная | C54: 1.20 | D54: 1.20
A55: Вода | C55: 152.00 | D55: 152.00
A56: Котлеты рубленые из говядины | B56: 70 | E56: 10.43 | F56: 7.70 | G56: 10.19 | H56: 151.38 | J56: СБ дошкольн. №299, 2016
A57: говядина б/к (котлетное мясо) | C57: 51.16 | D57: 49
A58: или фарш говяжий | D58: 49
A59: Лук репчатый | C59: 14.64 | D59: 12.3
A60: Хлеб пшеничный | C60: 11 | D60: 11
A61: Вода | C61: 14.7 | D61: 14.7
A62: Сухари панировочные | C62: 4.00 | D62: 4.00
A63: соль иодированная | C63: 0.7 | D63: 0.7
A64: масса полуфабриката | D64: 75.3
A65: масло растительное | C65: 0.85 | D65: 0.85
A66: Капуста тушеная | B66: 150 | E66: 3.30 | F66: 4.90 | G66: 14.10 | H66: 114.60 | I66: 24.70 | J66: №534сб шк2004
A67: Капуста свежая | C67: 215.00 | D67: 172.00
A68: Лук репчатый | C68: 7.14 | D68: 6.00
A69: Морковь | C69: 3.75 | D69: 3.00
A70: Мука пшеничная | C70: 2.00 | D70: 2.00
A71: Масло сливочное | C71: 2.00 | D71: 2.00
A72: Масло растительное | C72: 2.00 | D72: 2.00
A73: Томат-паста | C73: 1.20 | D73: 1.20
A74: Сахар | C74: 4.50 | D74: 4.50
A75: соль иодированная | C75: 1.00 | D75: 1.00
A76: Компот из сухофруктов | B76: 150 | E76: 0.70 | F76: 0.04 | G76: 20.60 | H76: 85.00 | I76: 0.30 | J76: №376 Дели2010
A77: сухофрукты | C77: 15.30 | D77: 15.00
A78: Сахар | C78: 10.00 | D78: 10.00
A79: Вода | C79: 152.00 | D79: 152.00
A80: Хлеб ржано - пшеничный | B80: 37.5 | C80: 37.50 | D80: 37.50 | E80: 2.48 | F80: 0.45 | G80: 14.85 | H80: 74.25 | J80: табл 6 стр 144,Дели + 2012
A81: Итого: | B81: 662.5 | E81: =E37+E40+E56+E66+E76+E80 -> 23.11 | F81: =F37+F40+F56+F66+F76+F80 -> 37.68 | G81: 76.07 | H81: 568.06 | I81: 34.68 | K81: =(H81*K118/H118)*100 -> 34.33
A82: ПОЛДНИК
A83: Кондитерские изделия | B83: 25 | C83: 25.00 | D83: 25.00 | E83: 1.88 | F83: 2.45 | G83: 18.60 | H83: 104.25 | J83: табл 6 стр 136,Ддели +,2012
A84: печенье
A85: Кисломолочный напиток | B85: 165/5 | E85: 4.79 | F85: 4.13 | G85: 12.09 | H85: 104.45 | I85: 1.16 | J85: №420 СБ дошк 2016
A86: (Кефир,ряженка,катык,напиток ацидофильный) | C86: 170.00 | D86: 165.00
A87: сахар | C87: 5.00 | D87: 5.00
B88: 195 | E88: =E83+E85 -> 6.67 | F88: =F83+F85 -> 6.58 | G88: 30.69 | H88: 208.70 | I88: 1.16 | K88: =(H88*K118/H118)*100 -> 12.61
A89: УЖИН
A90: Пудинг рыбный | B90: 80/30 | E90: 14.60 | F90: 9.00 | G90: 10.80 | H90: 182.00 | J90: №286 СБ дошк 2016
A91: рыба (минтай с/м ПБГ) | C91: 83.75 | D91: 67
A92: масса отварной рыбы | D92: 53
A93: Хлеб пшеничный | C93: 11 | D93: 11
A94: яйцо | C94: 8.4 | D94: 7
A95: молоко | C95: 16 | D95: 16
A96: масло сливочное | C96: 3 | D96: 3
A97: соль иодированная | C97: 0.5 | D97: 0.5
A98: Масло растительное | C98: 1.3 | D98: 1.3
A99: Соус молочный
A100: молоко | C100: 15 | D100: 15
A101: масло сливочное | C101: 1.65 | D101: 1.65
A102: Мука пшеничная | C102: 1.65 | D102: 1.65
A103: Вода | C103: 15 | D103: 15
A104: Сахар | C104: 0.3 | D104: 0.3
A105: соль иодированная | C105: 0.2 | D105: 0.2
A106: масса соуса | D106: 30
A107: Пюре Картофельное | B107: 140 | E107: 2.86 | F107: 4.48 | G107: 19.07 | H107: 128.10 | I107: 0.23 | J107: № 339 СБ дошк 2016
A108: Картофель | C108: 159.60 | D108: 119.70
A109: Молоко | C109: 22.12 | D109: 21.00
A110: Масло сливочное | C110: 5.00 | D110: 5.00
A111: соль иодированная | C111: 0.52 | D111: 0.52
A112: Чай с сахаром | B112: 180/10 | E112: 0.10 | F112: 0.02 | G112: 10.00 | H112: 40.00 | J112: № 392 Дели 2010
A113: Заварка | C113: 0.45 | D113: 0.45
A114: сахар | C114: 10.00 | D114: 10.00
A115: Вода | C115: 180.00 | D115: 180.00
A116: Хлеб пшеничный | B116: 30 | C116: 30.00 | D116: 30.00 | E116: 2.28 | F116: 0.24 | G116: 14.76 | H116: 70.50 | I116: 0.00 | J116: табл 6 стр 134,Дели + 2012
A117: Итого: | B117: 470 | E117: =E90+E107+E112+E116 -> 19.84 | F117: =F90+F107+F112+F116 -> 13.74 | G117: 54.63 | H117: 420.60 | I117: 0.23 | K117: =(H117*K118/H118)*100 -> 25.42
A118: ВСЕГО: | B118: =B29+B35+B81+B88+B117 -> 1927.50 | E118: =E29+E35+E81+E88+E117 -> 60.79 | F118: =F29+F35+F81+F88+F117 -> 72.33 | G118: =G29+G35+G81+G88+G117 -> 232.29 | H118: =H29+H35+H81+H88+H117 -> 1654.73 | I118: =I29+I35+I81+I88+I117 -> 46.47 | K118: 100%
A120: День 2- ой
A121: Наименование блюд и | B121: Масса | C121: Кол - во | D121: Кол - во | E121: Пищевые вещества | H121: Энергетическая | I121: Витамин | J121: Сборник | K121: Распределение калорийности между приемами пищи,%
A122: продуктов | B122: порции | C122: (в гр ) | D122: (в гр ) | H122: ценность | J122: рецептур
C123: брутто | D123: нетто | E123: белки | F123: жиры | G123: угл-ды | H123: Ккал | I123: С
A124: ЗАВТРАК
A125: Каша полбяная молочная с маслом сливочным | B125: 200/5 | E125: 5.89 | F125: 5.42 | G125: 25.84 | H125: 176.00 | I125: 0.21 | J125: ТТК №1Д
A126: крупа полбяная | C126: 25.00 | D126: 25.00
A127: Молоко | C127: 100.00 | D127: 100.00
A128: вода | C128: 76.00 | D128: 76.00
A129: Сахар | C129: 5.00 | D129: 5.00
A130: соль иодированная | C130: 1.00 | D130: 1.00
A131: Масло сливочное | C131: 5.00 | D131: 5.00
A132: Какао с молоком | B132: 180 | E132: 3.67 | F132: 3.19 | G132: 15.82 | H132: 107.00 | I132: 0.39 | J132: №397 Дели2010
A133: Какао-порошок | C133: 2.00 | D133: 2.00
A134: Сахар | C134: 10.00 | D134: 10.00
A135: Молоко | C135: 110.00 | D135: 110.00
A136: Вода | C136: 80.00 | D136: 80.00
A137: Бутерброд с сыром, маслом сливочным | B137: 30/7/5 | E137: 4.80 | F137: 7.20 | G137: 15.40 | H137: 146.00 | I137: 0.19 | J137: №3 Дели2010
A138: Батон нарезной | C138: 30.00 | D138: 30.00
A139: Сыр | C139: 7.14 | D139: 7.00
A140: Масло сливочное | C140: 5.00 | D140: 5.00
A141: Итого: | B141: 427 | E141: =E125+E132+E137 -> 14.36 | F141: =F125+F132+F137 -> 15.81 | G141: 57.06 | H141: 429.00 | I141: 0.79 | K141: =(H141*K220/H220)*100 -> 23.71
A142: 2 - ой ЗАВТРАК
A143: Фрукты свежие | B143: 70 | C143: 104.3 | D143: 70 | E143: 0.63 | F143: 0.14 | G143: 5.67 | H143: 30.10 | I143: 42.00 | J143: табл 9 стр 184, Дели +, 2012
A144: (яблоки,или апельсин, или банан,или мандарин)
A145: Итого: | B145: 70 | E145: =E143 -> 0.63 | F145: =F143 -> 0.14 | G145: 5.67 | H145: 30.10 | I145: 42.00 | K145: =(H145*K220/H220)*100 -> 1.66
A146: ОБЕД
A147: Салат с морской капустой с овощами | B147: 60 | E147: 1.12 | F147: 3.18 | G147: 6.50 | H147: 59.04 | I147: 7.20 | J147: ТТК 222 от 17.09.2019
A148: капуста морская сушеная | C148: 6.37 | D148: 6.37
A149: масса отварной морской капусты | D149: 40.00
A150: морковь | C150: 12.50 | D150: 10.00
A151: кукуруза к/с | C151: 12.53 | D151: 7.50
A152: масло растительное | C152: 3.00 | D152: 3.00
A153: Борщ со свежей капустой, картофелем на м/б,со сметаной | B153: 200/7 | E153: 1.50 | F153: 3.90 | G153: 9.50 | H153: 79.00 | I153: 6.36 | J153: №110, сб шк2004
A154: Капуста свежая | C154: 20.00 | D154: 16.00
A155: Картофель | C155: 21.28 | D155: 16.00
A156: Морковь | C156: 12.50 | D156: 10.00
A157: Лук репчатый | C157: 9.52 | D157: 8.00
A158: Свекла | C158: 41.00 | D158: 32.00
A159: Сахар | C159: 2.40 | D159: 2.40
A160: Томат-паста | C160: 1.00 | D160: 1.00
A161: Масло растительное | C161: 4.00 | D161: 4.00
A162: соль иодированная | C162: 2.00 | D162: 2.00
A163: Бульон | C163: 160.00 | D163: 160.00
A164: Сметана | C164: 7.00 | D164: 7.00
A165: Плов из отварной говядины | B165: 200 | E165: 15.60 | F165: 15.00 | G165: 28.00 | H165: 309.50 | I165: 0.65 | J165: №443,сбшк2004
A166: Говядина б/к (лопатка) | C166: 52.00 | D166: 52.0
A167: масса отварного мяса | D167: 32.0
A168: масло растительное | C168: 8.0 | D168: 8.0
A169: Лук репчатый | C169: 11.9 | D169: 10.00
A170: Морковь | C170: 16.3 | D170: 13.00
A171: Крупа рисовая | C171: 55.0 | D171: 55.0
A172: вода | C172: 86.0 | D172: 86.0
A173: соль иодированная | C173: 2.0 | D173: 2.0
A174: масса гарнира | D174: 168.0
A175: Кисель | B175: 150 | G175: 15.00 | H175: 60.00 | J175: № 648, сб шк2004
A176: Кисель-концентрат | C176: 18.00 | D176: 18.00
A177: Сахар | C177: 7.50 | D177: 7.50
A178: вода | C178: 150.00 | D178: 150.00
A179: Хлеб пшеничный | B179: 30 | C179: 30.00 | D179: 30.00 | E179: 2.28 | F179: 0.24 | G179: 14.76 | H179: 70.50 | I179: 0.00 | J179: табл 6 стр 134,Дели + 2012
A180: Хлеб ржано - пшеничный | B180: 37.5 | C180: 37.50 | D180: 37.50 | E180: 2.48 | F180: 0.45 | G180: 14.85 | H180: 74.25 | J180: табл 6 стр 144,Дели + 2012
A181: Итого: | B181: 684.5 | E181: =E147+E153+E165+E175+E179+E180 -> 22.98 | F181: =F147+F153+F165+F175+F179+F180 -> 22.77 | G181: 88.61 | H181: 652.29 | I181: 14.21 | K181: =(H181*K220/H220)*100 -> 36.06
A182: ПОЛДНИК
A183: Кисломолочный напиток | B183: 165 | E183: 4.79 | F183: 4.13 | G183: 6.93 | H183: 83.60 | I183: 0.50 | J183: №420 СБ дошк 2016
A184: (Кефир,ряженка,катык,напиток ацидофильный) | C184: 170 | D184: 165
A185: Ватрушка с повидлом | B185: 50 | E185: 2.92 | F185: 3.13 | G185: 29.00 | H185: 155.84 | I185: 0.19 | J185: №437 Сб дошк 2016
A186: Мука пшеничная | C186: 25.00 | D186: 25.00
A187: сахар | C187: 1.33 | D187: 1.33
A188: Масло сливочное | C188: 1.13 | D188: 1.13
A189: яйцо | C189: 1.60 | D189: 1.33
A190: соль иодированная | C190: 0.39 | D190: 0.39
A191: Дрожжи сухие | C191: 0.31 | D191: 0.31
A192: вода | C192: 10.00 | D192: 10.00
A193: масса теста | D193: 39.00
A194: мука пшеничная на подпыл | C194: 1.16 | D194: 1.16
A195: Повидло фруктовое | C195: 16.80 | D195: 16.70
A196: масло растительное для смазки листов | C196: 0.17 | D196: 0.17
A197: яйцо для смазки ватрушек | C197: 1.20 | D197: 1.00
B198: 215 | E198: =E183+E185 -> 7.71 | F198: =F183+F185 -> 7.26 | G198: 35.93 | H198: 239.44 | I198: 0.69 | K198: =(H198*K220/H220)*100 -> 13.24
A199: УЖИН
A200: Салат из моркови с сахаром | B200: 60 | E200: 0.75 | F200: 0.06 | G200: 6.97 | H200: 31.40 | J200: №42 СБ дошк 2016
A201: морковь | C201: 72.50 | D201: 58.00
A202: сахар | C202: 3.00 | D202: 3.00
... 856 more rows

Sheet от 2 мес до 3 лет
G1: "Утверждаю"
G2: Руководитель дошкольной образовательной
G3: организации
D4: Примерное 10-дневное меню
D5: для организации питания детей в дошкольных учреждениях
D6: с 7 - 12 - часовым пребыванием от 2 мес до 3 лет
A8: Наименование блюд и | B8: Масса | C8: Кол - во | D8: Кол - во | E8: Пищевые вещества | H8: Энергетическая | I8: витамин | J8: Сборник | K8: Распред калор между приемами пищи,%
A9: продуктов | B9: порции | C9: (в гр ) | D9: (в гр ) | H9: ценность | J9: рецептур
C10: брутто | D10: нетто | E10: белки | F10: жиры | G10: угл-ды | H10: Ккал | I10: С
A11: Каша "Дружба" молочная с маслом сливочным | B11: 150/4 | E11: 3.60 | F11: 5.30 | G11: 17.00 | H11: 130.00 | I11: 0.21 | J11: ТТК №7Д
A12: Крупа рисовая | C12: 11 | D12: 11
A13: Крупа пшенная | C13: 8 | D13: 8
A14: Молоко | C14: 80 | D14: 80
A15: Вода | C15: 52 | D15: 52
A16: Сахар | C16: 4 | D16: 4
A17: соль иодированная | C17: 0.8 | D17: 0.8
A18: Масло сливочное | C18: 4 | D18: 4
A19: Кофейный напиток с молоком | B19: 165 | E19: 2.57 | F19: 2.2 | G19: 11.69 | H19: 77 | I19: 0.16 | J19: №395Дели2010
A20: Кофейный напиток | C20: 2 | D20: 2
A21: Сахар | C21: 7.7 | D21: 7.7
A22: Молоко | C22: 75 | D22: 75
A23: вода | C23: 106 | D23: 106
A24: Бутерброд с маслом сливочным | B24: 25/5 | E24: 1.9 | F24: 4.4 | G24: 13 | H24: 99 | J24: №1 Дели2010
A25: Батон нарезной | C25: 25 | D25: 25
A26: Масло сливочное | C26: 5 | D26: 5
A27: Итого: | B27: 349 | E27: =E11+E19+E24 -> 8.07 | F27: =F11+F19+F24 -> 11.90 | G27: 41.69 | H27: 306.00 | I27: 0.37 | K27: =(H27*K118/H118)*100 -> 20.96
A28: 2 - ой ЗАВТРАК
A29: Сок | B29: 200 | C29: 200 | D29: 200 | E29: 1.00 | F29: 0.00 | G29: 20.20 | H29: 85.34 | I29: 4.00 | J29: №418 сб дошк 2016
A30: в ассортименте в инд.упаковке
A31: Фрукты свежие | B31: 80 | C31: 91.2 | D31: 80 | E31: 0.32 | F31: 0.32 | G31: 7.84 | H31: 35.20 | I31: 8.00 | J31: №386 СБ
A32: (яблоки,или апельсин, или банан,или мандарин ) | J32: дошк.2016
A33: Итого: | B33: 280 | E33: =E29+E31 -> 1.32 | F33: =F29+F31 -> 0.32 | G33: 28.04 | H33: 120.54 | I33: 12.00 | K33: =(H33*K118/H118)*100 -> 8.26
A34: ОБЕД
A35: Салат из зеленого горошка консервированного | B35: 30 | E35: 0.89 | F35: 1.56 | G35: 1.88 | H35: 25.08 | I35: 3.30 | J35: № 10 СБ дошк 2016
A36: зеленый горошек к/с | C36: 47.50 | D36: 28.50
A37: масло растительное | C37: 1.50 | D37: 1.50
A38: Суп со звездочами с картофелем с мясными фрикадельками | B38: 150/10 | E38: 5.01 | F38: 22.51 | G38: 13.83 | H38: 109.39 | I38: 5.28 | J38: 140сбшк2004
A39: говядина б/к (котлетное мясо) | C39: 11.9 | D39: 11.4
A40: или фарш говяжий | D40: 11.4
A41: Лук репчатый | C41: 1.19 | D41: 1
A42: Яйцо | C42: 0.96 | D42: 0.8
A43: Вода для фарша | C43: 1 | D43: 1
A44: соль иодированная | C44: 1 | D44: 1
A45: Масса полуфабриката | D45: 14.3
A46: масса готовых фрикаделек | D46: 10
A47: Картофель | C47: 59.90 | D47: 45.00
A48: Морковь | C48: 7.50 | D48: 6.00
A49: Лук репчатый | C49: 7.14 | D49: 6.00
A50: суповая засыпка (звездочки) | C50: 6.00 | D50: 6.00
A51: Масло растительное | C51: 3.00 | D51: 3.00
A52: соль иодированная | C52: 1.00 | D52: 1.00
A53: Вода | C53: 114.00 | D53: 114.00
A54: Котлеты рубленные из говядины | B54: 50 | E54: 7.45 | F54: 5.50 | G54: 7.28 | H54: 108.13 | J54: СБ дошкольн. №299, 2016
A55: говядина б/к (котлетное мясо) | C55: 36.57 | D55: 35
A56: или фарш говяжий | D56: 35
A57: лук репчатый | C57: 10.4 | D57: 8.75
A58: Хлеб пшеничный | C58: 8.13 | D58: 8.13
A59: Вода | C59: 5.2 | D59: 5.2
A60: сухари панировочные | C60: 2.8 | D60: 2.8
A61: соль иодированная | C61: 0.4 | D61: 0.4
A62: масса полуфабриката | D62: 61.9
A63: Масло растительное | C63: 0.60 | D63: 0.60
A64: Капуста тушеная | B64: 130 | E64: 2.86 | F64: 4.25 | G64: 12.22 | H64: 99.32 | I64: 21.41 | J64: №534 сбшк2004
A65: Капуста свежая | C65: 186.3 | D65: 149.1
A66: Лук репчатый | C66: 6.2 | D66: 5.2
A67: Морковь | C67: 3.25 | D67: 2.6
A68: томатная паста | C68: 1.04 | D68: 1.04
A69: Мука пшеничная | C69: 1.7 | D69: 1.7
A70: Масло растительное | C70: 1.7 | D70: 1.7
A71: Масло сливочное | C71: 1.7 | D71: 1.7
A72: Сахар | C72: 3.9 | D72: 3.9
A73: соль иодированная | C73: 0.9 | D73: 0.9
A74: Компот из сухофруктов | B74: 130 | E74: 0.28 | F74: 0.01 | G74: 18.05 | H74: 73.45 | I74: 0.26 | J74: №376 Дели2010
A75: сухофрукты | C75: 13.3 | D75: 13
A76: вода | C76: 130 | D76: 130
A77: Сахар | C77: 8 | D77: 8
A78: Хлеб пшеничный | B78: 15 | C78: 15.00 | D78: 15.00 | E78: 1.14 | F78: 0.12 | G78: 7.38 | H78: 35.25 | I78: 0.00 | J78: табл 6 стр 134,Дели + 2012
A79: Хлеб пшенично - ржаной | B79: 30 | C79: 30 | D79: 30 | E79: 1.98 | F79: 0.36 | G79: 11.88 | H79: 59.4 | J79: табл 6 стр 144,Дели + 2012
A80: Итого: | B80: 545.00 | E80: =E35++E38+E54+E64+E74+E78+E79 -> 19.61 | F80: =F35++F38+F54+F64+F74+F78+F79 -> 34.31 | G80: 72.52 | H80: 510.02 | I80: 30.25 | K80: =(H80*K118/H118)*100 -> 34.93
A81: ПОЛДНИК
A82: Кисломолочный напиток | B82: 150/5 | E82: 4.35 | F82: 3.75 | G82: 10.99 | H82: 94.95 | I82: 1.05 | J82: №420 Сб дошк 2016
A83: (Кефир,ряженка,катык,напиток ацидофильный) | C83: 155 | D83: 150
A84: сахар | C84: 5 | D84: 5
A85: Кондитерские изделия | J85: табл 6 стр 136,Ддели +,2012
A86: печенье | B86: 15 | C86: 15 | D86: 15 | E86: 1.13 | F86: 1.47 | G86: 11.16 | H86: 62.55
B87: 170 | E87: =E82+E86 -> 5.48 | F87: =F82+F86 -> 5.22 | G87: 22.15 | H87: 157.5 | I87: 1.05 | K87: =(H87*K118/H118)*100 -> 10.79
A88: УЖИН
A89: Пудинг рыбный | B89: 60/20 | E89: 11.23 | F89: 6.77 | G89: 8.12 | H89: 136.84 | J89: №286 СБ дошк 2016
A90: рыба (минтай с/м ПБГ) | C90: 62.85 | D90: 50.25
A91: масса отварной рыбы | D91: 39.75
A92: Хлеб пшеничный | C92: 8.25 | D92: 8.25
A93: яйцо | C93: 6.3 | D93: 5.25
A94: молоко | C94: 12 | D94: 12
A95: масло сливочное | C95: 2.25 | D95: 2.25
A96: соль иодированная | C96: 0.4 | D96: 0.4
A97: Масло растительное | C97: 1 | D97: 1
A98: масса пудинга | D98: 60
A99: Соус молочный
A100: молоко | C100: 10 | D100: 10
A101: масло сливочное | C101: 1.1 | D101: 1.1
A102: Мука пшеничная | C102: 1.1 | D102: 1.1
A103: Вода | C103: 10 | D103: 10
A104: Сахар | C104: 0.2 | D104: 0.2
A105: соль иодированная | C105: 0.13 | D105: 0.13
A106: масса соуса | D106: 20
A107: Пюре Картофельное | B107: 130 | E107: 2.66 | F107: 4.16 | G107: 17.71 | H107: 118.95 | I107: 0.22 | J107: № 339 СБ дошк 2016
A108: Картофель | C108: 148.20 | D108: 111.15
A109: Молоко | C109: 20.54 | D109: 19.50
A110: Масло сливочное | C110: 4.55 | D110: 4.55
A111: соль иодированная | C111: 0.50 | D111: 0.50
A112: Чай с сахаром | B112: 150/8 | E112: 0.04 | F112: 0.01 | G112: 6.99 | H112: 28 | I112: 0.04 | J112: №392 Дели2010
A113: Заварка | C113: 0.4 | D113: 0.4
A114: Сахар | C114: 8 | D114: 8
A115: Вода | C115: 150 | D115: 150
A116: Хлеб пшеничный | B116: 35 | C116: 35.00 | D116: 35.00 | E116: 2.66 | F116: 0.28 | G116: 17.22 | H116: 82.25 | I116: 0.00 | J116: табл 6 стр 134,Дели + 2012
A117: Итого: | B117: 403.00 | E117: =E89+E107+E112+E116 -> 16.59 | F117: =F89+F107+F112+F116 -> 11.22 | G117: 50.04 | H117: 366.04 | I117: 0.26 | K117: =(H117*K118/H118)*100 -> 25.07
A118: ВСЕГО: | B118: =B27+B33+B80+B87+B117 -> 1747.00 | E118: =E27+E33+E80+E87+E117 -> 51.07 | F118: 62.97 | G118: 214.44 | H118: 1460.10 | I118: 43.93 | K118: 100%
A120: День 2- ой
A121: Наименование блюд и | B121: Масса | C121: Кол - во | D121: Кол - во | E121: Пищевые вещества | H121: Энергетическая | I121: Витамин | J121: Сборник | K121: Распределение калорийности между приемами пищи,%
A122: продуктов | B122: порции | C122: (в гр ) | D122: (в гр ) | H122: ценность | J122: рецептур
C123: брутто | D123: нетто | E123: белки | F123: жиры | G123: угл-ды | H123: Ккал | I123: С
A124: ЗАВТРАК
A125: Каша полбяная молочная с маслом сливочным | B125: 150/4 | E125: 4.20 | F125: 3.80 | G125: 18.00 | H125: 123.00 | I125: 0.16 | J125: ТТК №1Д
A126: крупа полбяная | C126: 19 | D126: 19
A127: Молоко | C127: 80 | D127: 80
A128: вода | C128: 52 | D128: 52
A129: Сахар | C129: 4 | D129: 4
A130: соль иодированная | C130: 0.8 | D130: 0.8
A131: Масло сливочное | C131: 4 | D131: 4
A132: Какао с молоком | B132: 160 | E132: 3.47 | F132: 2.99 | G132: 14.26 | H132: 97.90 | I132: 0.32 | J132: №397 Дели2010
A133: Какао-порошок | C133: 1.7 | D133: 1.7
A134: Сахар | C134: 9 | D134: 9
A135: Молоко | C135: 92 | D135: 92
A136: вода | C136: 77 | D136: 77
A137: Бутерброд с сыром, маслом сливочным | B137: 25/5/5 | E137: 3.50 | F137: 5.95 | G137: 12.90 | H137: 119.60 | I137: 0.04 | J137: №3Дели2010
A138: Батон нарезной | C138: 25 | D138: 25
A139: Сыр | C139: 5.1 | D139: 5
A140: Масло сливочное | C140: 5 | D140: 5
A141: Итого: | B141: 349 | E141: =E125+E132+E137 -> 11.17 | F141: =F125+F132+F137 -> 12.74 | G141: 45.16 | H141: 340.50 | I141: 0.52 | K141: =(H141*K218/H218)*100 -> 25.46
A142: 2 - ой ЗАВТРАК
A143: Фрукты свежие | B143: 60 | C143: 89.4 | D143: 60 | E143: 0.54 | F143: 0.12 | G143: 4.86 | H143: 25.80 | I143: 36.00 | J143: табл 9 стр 184, Дели +, 2012
A144: (яблоки,или апельсин, или банан,или мандарин )
A145: Итого: | B145: 60 | E145: =E143 -> 0.54 | F145: =F143 -> 0.12 | G145: 4.86 | H145: 25.80 | I145: 36.00 | K145: =(H145*K218/H218)*100 -> 1.93
A146: ОБЕД
A147: Салат с морской капустой с морковью и кукурузой к/с | B147: 50 | E147: 0.93 | F147: 2.65 | G147: 5.42 | H147: 49.20 | I147: 6.00 | J147: № 49 СБ дошк 2016
A148: капуста морская сушеная | C148: 5.30 | D148: 5.30
A149: масса отварной морской капусты | D149: 33.00
A150: морковь | C150: 10.63 | D150: 8.50
A151: кукуруза к/с | C151: 10.44 | D151: 6.25
A152: масло растительное | C152: 2.50 | D152: 2.50
A153: Борщ со свежей капустой, картофелем на мясном бульоне,со сметаной | B153: 150/6 | E153: 1.10 | F153: 3.20 | G153: 7.20 | H153: 62.00 | I153: 4.80 | J153: №110,сбшк2004
A154: Капуста свежая | C154: 15.0 | D154: 12.0
A155: Картофель | C155: 15.96 | D155: 12.0
A156: Морковь | C156: 7.5 | D156: 6.0
A157: Лук репчатый | C157: 7.14 | D157: 6.0
A158: Свекла | C158: 30.72 | D158: 24.0
A159: Сахар | C159: 1.8 | D159: 1.8
A160: Масло растительное | C160: 3.0 | D160: 3.0
A161: соль иодированная | C161: 1.5 | D161: 1.5
A162: Бульон | C162: 120 | D162: 120.0
A163: Сметана | C163: 6.0 | D163: 6.0
A164: Плов из отварной говядины | B164: 150 | E164: 11.70 | F164: 11.70 | G164: 24.00 | H164: 248.30 | I164: 0.48 | J164: №443 сбшк2004
A165: говядина б/к (лопатка) | C165: 39.00 | D165: 39.0
A166: масса вареного мяса | D166: 24.0
A167: масло растительное | C167: 5.0 | D167: 5.0
A168: Лук репчатый | C168: 8.9 | D168: 7.5
A169: Морковь | C169: 12.5 | D169: 10.0
A170: Крупа рисовая | C170: 32.0 | D170: 32.0
A171: вода | C171: 65.0 | D171: 65.0
A172: соль иодированная | C172: 1.3 | D172: 1.3
A173: масса гарнира | D173: 126.0
A174: Кисель | B174: 130 | G174: 13.00 | H174: 52.00 | J174: №648 сбшк2004
A175: Кисель-концентрат | C175: 15.20 | D175: 15.20
A176: Сахар | C176: 6.00 | D176: 6.00
A177: вода | C177: 130.00 | D177: 130.00
A178: Хлеб пшенично - ржаной | B178: 30 | C178: 30 | D178: 30 | E178: 1.98 | F178: 0.36 | G178: 11.88 | H178: 59.4 | J178: табл 6 стр 144,Дели + 2012
A179: Итого: | B179: 516 | E179: =E147+E153+E164+E174+E178 -> 15.71 | F179: =F147+F153+F164+F174+F178 -> 17.91 | G179: 61.50 | H179: 470.90 | I179: 11.28 | K179: =(H179*K218/H218)*100 -> 35.21
A180: ПОЛДНИК
A181: Кисломолочный напиток | B181: 150 | E181: 4.35 | F181: 3.75 | G181: 6.30 | H181: 76.00 | I181: 0.45 | J181: №420 Сб дошк 2016
A182: (кефир,ряженка,катык,напиток ацидофильный) | C182: 155 | D182: 150
A183: Ватрушка с повидлом | B183: 35 | E183: 2.04 | F183: 2.19 | G183: 20.28 | H183: 109.08 | I183: 0.13 | J183: №437 Сб дошк 2016
A184: Мука пшеничная | C184: 17.30 | D184: 17.30
A185: сахар | C185: 0.92 | D185: 0.92
A186: Масло сливочное | C186: 0.78 | D186: 0.78
A187: яйцо | C187: 1.13 | D187: 0.94
A188: соль иодированная | C188: 0.27 | D188: 0.27
A189: Дрожжи сухие | C189: 0.22 | D189: 0.22
A190: вода | C190: 7.00 | D190: 7.00
A191: масса теста | D191: 27.00
A192: мука пшеничная на подпыл | C192: 0.80 | D192: 0.80
A193: Повидло фруктовое | C193: 11.80 | D193: 11.70
A194: масло растительное для смазки листов | C194: 0.12 | D194: 0.12
A195: яйцо для смазки ватрушек | C195: 0.84 | D195: 0.70
B196: 185 | E196: =E181+E183 -> 6.39 | F196: =F181+F183 -> 5.94 | G196: 26.58 | H196: 185.08 | I196: 0.58 | K196: =(H196*K218/H218)*100 -> 13.84
A197: УЖИН
A198: Салат из моркови с сахаром | B198: 50 | E198: 0.63 | F198: 0.05 | G198: 5.81 | H198: 26.16 | J198: №42 СБ дошк 2016
A199: морковь | C199: 60.00 | D199: 48.00
A200: сахар | C200: 2.50 | D200: 2.50
A201: Суфле из творога с молоком сгущенным | B201: 100/10 | E201: 12.30 | F201: 6.92 | G201: 25.38 | H201: 213.08 | I201: 0.23 | J201: №365сбшк2004
A202: Творог | C202: 72.93 | D202: 71.50
... 840 more rows
